fUSD/lending_fUSD_20250702
["ID","MTS","AMOUNT","RATE_DAILY","PERIOD"]
[368983159,1751424640894,-491.1156139,0.000167,2]
[368983161,1751424640905,-152.986929,0.000167,2]
[368983163,1751424640915,-490.0,0.000167,2]
[368983165,1751424640924,-503.17691326,0.000167,2]
[368983167,1751424640935,-654.96,0.000167,2]
[368983169,1751424640945,-490.0,0.000167,2]
[368983171,1751424640954,-152.269288,0.000167,2]
[368983173,1751424640963,-490.0,0.000167,2]
[368983175,1751424640972,-151.0,0.000167,2]
[368983177,1751424640982,-151.0,0.000167,2]
[368983179,1751424640991,-162.304692,0.000167,2]
[368983181,1751424641000,-490.0,0.000167,2]
[368983183,1751424641009,-490.0,0.000167,2]
[368983185,1751424641019,-490.0,0.000167,2]
[368983187,1751424641028,-490.0,0.000167,2]
[368983189,1751424641039,-495.09361849,0.000167,2]
[368983191,1751424641050,-478.82580389,0.000167,2]
[368983193,1751424641059,-838.89,0.000167,2]
[368983195,1751424641068,-509.88097459,0.000167,2]
[368983197,1751424641086,-151.0,0.000167,2]
[368983199,1751424641096,-492.50329168,0.000167,2]
[368983201,1751424641105,-490.0,0.000167,2]
[368983203,1751424641115,-490.0,0.000167,2]
[368983205,1751424641124,-490.0,0.000167,2]
[368983207,1751424641133,-490.0,0.000167,2]
[368983209,1751424641143,-490.0,0.000167,2]
[368983211,1751424641152,-490.0,0.000167,2]
[368983213,1751424641161,-490.0,0.000167,2]
[368983215,1751424641174,-151.0,0.000167,2]
[368983217,1751424641184,-250.202364,0.000167,2]
[368983218,1751424641193,-490.0,0.000167,2]
[368983220,1751424641202,-151.0,0.000167,2]
[368983222,1751424641212,-151.0,0.000167,2]
[368983224,1751424641222,-151.0,0.000167,2]
[368983227,1751424641233,-490.0,0.000167,2]
[368983228,1751424641243,-151.0,0.000167,2]
[368983230,1751424641255,-151.0,0.000167,2]
[368983232,1751424641265,-151.0,0.000167,2]
[368983234,1751424641275,-490.0,0.000167,2]
[368983236,1751424641284,-490.0,0.000167,2]
[368983238,1751424641294,-490.0,0.000167,2]
[368983240,1751424641304,-490.0,0.000167,2]
[368983242,1751424641313,-270.384927,0.000167,2]
[368983244,1751424641322,-151.0,0.000167,2]
[368983247,1751424641333,-151.0,0.000167,2]
[368983248,1751424641344,-151.0,0.000167,2]
[368983250,1751424641353,-490.0,0.000167,2]
[368983252,1751424641362,-512.58595563,0.000167,2]
[368983254,1751424641372,-502.64184415,0.000167,2]
[368983256,1751424641381,-817.434751,0.000167,2]
[368983258,1751424641390,-817.434751,0.000167,2]
[368983260,1751424641400,-817.434751,0.000167,2]
[368983262,1751424641409,-151.0,0.000167,2]
[368983264,1751424641419,-151.0,0.000167,2]
[368983266,1751424641428,-151.0,0.000167,2]
[368983269,1751424641441,-151.0,0.000167,2]
[368983271,1751424641453,-151.0,0.000167,2]
[368983273,1751424641466,-199.10585,0.000167,2]
[368983275,1751424641478,-490.0,0.000167,2]
[368983276,1751424641491,-490.0,0.000167,2]
[368983277,1751424641501,-490.0,0.000167,2]
[368983278,1751424641511,-490.0,0.000167,2]
[368983279,1751424641522,-490.0,0.000167,2]
[368983280,1751424641534,-490.0,0.000167,2]
[368983281,1751424641545,-490.0,0.000167,2]
[368983282,1751424641556,-469.63196925,0.000167,2]
[368983283,1751424641567,-490.0,0.000167,2]
[368983284,1751424641579,-490.0,0.000167,2]
[368983286,1751424641591,-151.0,0.000167,2]
[368983289,1751424641604,-490.0,0.000167,2]
[368983291,1751424641615,-490.0,0.000167,2]
[368983293,1751424641627,-490.0,0.000167,2]
[368983295,1751424641638,-490.0,0.000167,2]
[368983297,1751424641648,-502.41331652,0.000167,2]
[368983300,1751424641658,-490.0,0.000167,2]
[368983302,1751424641671,-185.574174,0.000167,2]
[368983304,1751424641682,-428.105897,0.000167,2]
[368983306,1751424641694,-428.105897,0.000167,2]
[368983309,1751424641705,-428.105897,0.000167,2]
[368983311,1751424641717,-151.0,0.000167,2]
[368983313,1751424641728,-169.25492,0.000167,2]
[368983315,1751424641740,-151.0,0.000167,2]
[368983318,1751424641751,-151.0,0.000167,2]
[368983320,1751424641764,-156.872093,0.000167,2]
[368983322,1751424641775,-428.105897,0.000167,2]
[368983324,1751424641785,-428.105897,0.000167,2]
[368983327,1751424641799,-428.105897,0.000167,2]
[368983329,1751424641810,-5339.8530005,0.000167,2]
[368983331,1751424641823,-500.18940686,0.000167,2]
[368983333,1751424641834,-151.0,0.000167,2]
[368983336,1751424641846,-151.0,0.000167,2]
[368983338,1751424641859,-151.0,0.000167,2]
[368983340,1751424641871,-258.777187,0.000167,2]
[368983342,1751424641882,-258.777187,0.000167,2]
[368983345,1751424641895,-258.777187,0.000167,2]
[368983347,1751424641907,-258.777187,0.000167,2]
[368983349,1751424641919,-258.777187,0.000167,2]
[368983351,1751424641931,-258.777187,0.000167,2]
[368983353,1751424641942,-171.499816,0.000167,2]
[368983356,1751424641954,-171.499816,0.000167,2]
[368983358,1751424641965,-171.499816,0.000167,2]
[368983360,1751424641975,-171.499816,0.000167,2]
[368983362,1751424641985,-171.499816,0.000167,2]
[368983364,1751424641996,-171.499816,0.000167,2]
[368983366,1751424642008,-490.0,0.000167,2]
[368983369,1751424642021,-1102.393453,0.000167,2]
[368983371,1751424642038,-1102.393453,0.000167,2]
[368983373,1751424642049,-1102.393453,0.000167,2]
[368983375,1751424642060,-1102.393453,0.000167,2]
[368983377,1751424642070,-492.02564471,0.000167,2]
[368983379,1751424642080,-491.52420069,0.000167,2]
[368983382,1751424642091,-800.0,0.000167,6]
[368983384,1751424642102,-421.813271,0.000167,2]
[368983386,1751424642113,-421.813271,0.000167,2]
[368983388,1751424642126,-421.813271,0.000167,2]
[368983391,1751424642137,-421.813271,0.000167,2]
[368983393,1751424642148,-151.0,0.000167,2]
[368983395,1751424642159,-151.0,0.000167,2]
[368983397,1751424642169,-151.0,0.000167,2]
[368983399,1751424642183,-151.0,0.000167,2]
[368983401,1751424642193,-151.0,0.000167,2]
[368983403,1751424642204,-151.0,0.000167,2]
[368983406,1751424642215,-283.067989,0.000167,2]
[368983408,1751424642226,-151.0,0.000167,2]
[368983410,1751424642237,-151.0,0.000167,2]
[368983412,1751424642249,-191.518398,0.000167,2]
[368983413,1751424642259,-191.518398,0.000167,2]
[368983415,1751424642271,-191.518398,0.000167,2]
[368983418,1751424642284,-191.518398,0.000167,2]
[368983420,1751424642296,-191.518398,0.000167,2]
[368983421,1751424642306,-191.518398,0.000167,2]
[368983423,1751424642317,-151.0,0.000167,2]
[368983426,1751424642327,-151.0,0.00016701,2]
[368983428,1751424642337,-153.227375,0.00016701,2]
[368983430,1751424642348,-152.850403,0.00016701,2]
[368983432,1751424642358,-151.0,0.00016701,2]
[368983434,1751424642368,-151.0,0.00016701,2]
[368983436,1751424642379,-155.432177,0.00016701,2]
[368983438,1751424642389,-162.86631519,0.00016701,2]
[368983474,1751424642737,-500.0,0.00016437,2]
[368983476,1751424642750,-0.90518981,0.00016701,2]
[368983478,1751424642760,-151.0,0.00016701,2]
[368983480,1751424642771,-159.309146,0.00016701,2]
[368983482,1751424642781,-151.0,0.00016701,2]
[368983485,1751424642792,-427.594922,0.00016701,2]
[368983487,1751424642802,-427.594922,0.00016701,2]
[368983490,1751424642813,-427.594922,0.00016701,2]
[368983492,1751424642823,-427.594922,0.00016701,2]
[368983494,1751424642833,-200.0,0.00016701,2]
[368983496,1751424642844,-200.0,0.00016701,2]
[368983498,1751424642854,-200.0,0.00016701,2]
[368983500,1751424642865,-200.0,0.00016701,2]
[368983502,1751424642875,-200.0,0.00016701,2]
[368983504,1751424642885,-200.0,0.00016701,2]
[368983506,1751424642896,-200.0,0.00016701,2]
[368983508,1751424642906,-200.0,0.00016701,2]
[368983511,1751424642916,-200.0,0.00016701,2]
[368983514,1751424642926,-200.0,0.00016701,2]
[368983517,1751424642937,-200.0,0.00016701,2]
[368983520,1751424642947,-200.0,0.00016701,2]
[368983523,1751424642957,-200.0,0.00016701,2]
[368983525,1751424642967,-200.0,0.00016701,2]
[368983527,1751424642978,-200.0,0.00016701,2]
[368983529,1751424642989,-200.0,0.00016701,2]
[368983531,1751424643000,-200.0,0.00016701,2]
[368983533,1751424643013,-200.0,0.00016701,2]
[368983535,1751424643024,-200.0,0.00016701,2]
[368983537,1751424643037,-200.0,0.00016701,2]
[368983538,1751424643048,-200.0,0.00016701,2]
[368983539,1751424643058,-200.0,0.00016701,2]
[368983540,1751424643069,-200.0,0.00016701,2]
[368983541,1751424643080,-200.0,0.00016701,2]
[368983542,1751424643090,-218.425469,0.00016701,2]
[368983543,1751424643101,-151.0,0.00016701,2]
[368983544,1751424643112,-151.015713,0.00016701,2]
[368983545,1751424643122,-186.07528,0.00016701,2]
[368983547,1751424643133,-151.0,0.00016701,2]
[368983548,1751424643143,-156.95753,0.00016701,2]
[368983549,1751424643155,-151.0,0.00016701,2]
[368983550,1751424643167,-300.685704,0.00016701,2]
[368983551,1751424643181,-162.09,0.00016701,2]
[368983552,1751424643191,-2435.107,0.00016701,2]
[368983553,1751424643202,-151.0,0.00016701,2]
[368983554,1751424643213,-151.0,0.00016701,2]
[368983555,1751424643226,-428.105897,0.00016701,2]
[368983556,1751424643237,-428.105897,0.00016701,2]
[368983557,1751424643248,-151.0,0.00016701,2]
[368983558,1751424643260,-258.777187,0.00016701,2]
[368983559,1751424643272,-258.777187,0.00016701,2]
[368983560,1751424643283,-171.499816,0.00016701,2]
[368983561,1751424643293,-171.499816,0.00016701,2]
[368983562,1751424643304,-151.0,0.00016701,2]
[368983563,1751424643315,-151.0,0.00016701,2]
[368983565,1751424643328,-191.518398,0.00016701,2]
[368983567,1751424643339,-191.518398,0.00016701,2]
[368983569,1751424643350,-3341.0,0.00016702,2]
[368983572,1751424643362,-1015.456,0.00016702,2]
[368983574,1751424643373,-804.0,0.00016702,2]
[368983576,1751424643384,-640.0,0.00016702,2]
[368983578,1751424643395,-2009.0,0.00016702,2]
[368983580,1751424643406,-593.0,0.00016702,2]
[368983582,1751424643417,-1163.0,0.00016702,2]
[368983583,1751424643427,-1282.0,0.00016702,2]
[368983584,1751424643437,-1680.0,0.00016702,2]
[368983585,1751424643446,-887.0,0.00016702,2]
[368983586,1751424643455,-931.0,0.00016702,2]
[368983587,1751424643465,-560.0,0.00016702,2]
[368983588,1751424643475,-4107.0,0.00016702,2]
[368983589,1751424643485,-156.0,0.00016702,2]
[368983590,1751424643495,-7151.0,0.00016702,2]
[368983592,1751424643504,-753.0,0.00016702,2]
[368983594,1751424643514,-1102.393453,0.00016702,2]
[368983596,1751424643523,-1102.393453,0.00016702,2]
[368983598,1751424643533,-421.813271,0.00016702,2]
[368983599,1751424643542,-421.813271,0.00016702,2]
[368983601,1751424643551,-151.0,0.00016702,2]
[368983603,1751424643561,-1454.7396136,0.00016705,2]
[368983605,1751424643570,-427.594922,0.0001671,2]
[368983607,1751424643580,-427.594922,0.0001671,2]
[368983608,1751424643590,-817.434751,0.0001671,2]
[368983609,1751424643599,-817.434751,0.0001671,2]
[368983610,1751424643609,-151.0,0.0001671,2]
[368983611,1751424643618,-231.0,0.00016711,2]
[368983612,1751424643627,-237.46056976,0.00016712,2]
[368983613,1751424643636,-151.0,0.00016712,2]
[368983614,1751424643646,-490.0,0.00016712,2]
[368983615,1751424643656,-490.0,0.00016712,2]
[368983616,1751424643667,-738.02,0.00016712,2]
[368983617,1751424643676,-490.0,0.00016712,2]
[368983618,1751424643686,-505.88666731,0.00016712,2]
[368983619,1751424643695,-490.0,0.00016712,2]
[368983620,1751424643706,-490.0,0.00016712,2]
[368983621,1751424644069,-490.0,0.00016712,2]
[368983622,1751424644087,-810.31,0.00016712,2]
[368983623,1751424644104,-490.0,0.00016712,2]
[368983624,1751424644115,-517.53878241,0.00016712,2]
[368983625,1751424644125,-410.95673082,0.00016712,2]
[368983626,1751424644135,-490.0,0.00016712,2]
[368983627,1751424644144,-490.0,0.00016712,2]
[368983628,1751424644155,-490.0,0.00016712,2]
[368983629,1751424644164,-490.0,0.00016712,2]
[368983630,1751424644179,-490.0,0.00016712,2]
[368983631,1751424644189,-849.97,0.00016712,2]
[368983632,1751424644198,-490.0,0.00016712,2]
[368983633,1751424644208,-490.0,0.00016712,2]
[368983634,1751424644219,-548.9584746,0.00016712,2]
[368983635,1751424644231,-490.0,0.00016712,2]
[368983636,1751424644241,-490.0,0.00016712,2]
[368983637,1751424644250,-490.0,0.00016712,2]
[368983638,1751424644262,-190.83050099,0.00016712,2]
[368983639,1751424644272,-761.76,0.00016712,2]
[368983640,1751424644281,-1897.6,0.00016712,2]
[368983641,1751424644291,-2283.86,0.00016712,2]
[368983642,1751424644301,-695.16,0.00016712,2]
[368983643,1751424644313,-490.0,0.00016712,2]
[368983644,1751424644324,-490.0,0.00016712,2]
[368983645,1751424644334,-796.46,0.00016712,2]
[368983646,1751424644343,-545.85,0.00016712,2]
[368983647,1751424644355,-490.0,0.00016712,2]
[368983648,1751424644365,-168.75,0.00016712,2]
[368983649,1751424644375,-285.97,0.00016723,2]
[368983650,1751424644384,-500.0,0.0001674,2]
[368983651,1751424644393,-151.0,0.00016754,2]
[368983652,1751424644404,-151.0,0.00016766,2]
[368983653,1751424644413,-178.123022,0.00016766,2]
[368983654,1751424644423,-428.105897,0.00016766,2]
[368983655,1751424644432,-428.105897,0.00016766,2]
[368983656,1751424644441,-151.0,0.00016766,2]
[368983657,1751424644451,-258.777187,0.00016766,2]
[368983658,1751424644460,-258.777187,0.00016766,2]
[368983659,1751424644470,-171.499816,0.00016766,2]
[368983660,1751424644479,-171.499816,0.00016766,2]
[368983661,1751424644490,-151.0,0.00016766,2]
[368983662,1751424644499,-254.939027,0.00016766,2]
[368983663,1751424644509,-191.518398,0.00016766,2]
[368983664,1751424644518,-191.518398,0.00016766,2]
[368983665,1751424644527,-23300.18414046,0.00016766,2]
[368983666,1751424644537,-151.0,0.00016772,2]
[368983667,1751424644547,-500.0,0.00016773,2]
[368983668,1751424644556,-500.0,0.00016773,2]
[368983669,1751424644567,-168.0,0.0001679,2]
[368983670,1751424644577,-1700.0,0.000168,6]
[368983671,1751424644587,-1454.7396136,0.00016805,2]
[368983672,1751424644597,-197.53079602,0.00016872,2]
[368983673,1751424644607,-151.0,0.00016873,2]
[368983674,1751424644617,-151.0,0.00016873,2]
[368983675,1751424644627,-291.40957335,0.00016873,2]
[368983676,1751424644636,-197.15569495,0.00016874,2]
[368983677,1751424644646,-1957.12761592,0.00016884,2]
[368983678,1751424644655,-2500.0,0.000169,6]
[368983679,1751424644664,-817.434751,0.000169,2]
[368983680,1751424644673,-817.434751,0.000169,2]
[368983681,1751424644683,-1010.0,0.000169,2]
[368983682,1751424644692,-187.549188,0.000169,2]
[368983683,1751424644701,-150.0,0.00016902,2]
[368983684,1751424644710,-503.20354232,0.00016902,2]
[368983685,1751424644720,-500.0,0.00016902,2]
[368983686,1751424644729,-1018.0,0.00016902,2]
[368983687,1751424644739,-519.0,0.00016902,2]
[368983688,1751424644749,-150.0,0.00016902,2]
[368983689,1751424644758,-150.0,0.00016902,2]
[368983690,1751424644768,-500.0,0.00016902,2]
[368983691,1751424644778,-503.34616689,0.00016902,2]
[368983692,1751424644787,-201.09177461,0.00016902,2]
[368983693,1751424644796,-500.0,0.00016902,2]
[368983694,1751424644805,-587.64989888,0.00016902,2]
[368983695,1751424644814,-500.0,0.00016902,2]
[368983696,1751424644823,-150.0,0.00016902,2]
[368983697,1751424644833,-1102.393453,0.00016902,2]
[368983698,1751424644842,-1102.393453,0.00016902,2]
[368983699,1751424644852,-1454.7396136,0.00016904,2]
[368983700,1751424644861,-168.0,0.0001693,2]
[368983701,1751424644870,-883.8905741,0.00016949,2]
[368983702,1751424644879,-232.60605881,0.00016949,2]
[368983703,1751424644889,-614.8666284,0.0001695,2]
[368983704,1751424644898,-59187.2758549,0.0001695,2]
[368983705,1751424644907,-1102.393453,0.0001695,2]
[368983706,1751424644917,-1102.393453,0.0001695,2]
[368983707,1751424644926,-421.813271,0.0001695,2]
[368983708,1751424644936,-421.813271,0.0001695,2]
[368983709,1751424644946,-421.813271,0.0001695,2]
[368983710,1751424644955,-421.813271,0.0001695,2]
[368983711,1751424644964,-421.813271,0.0001695,2]
[368983712,1751424644974,-421.813276,0.0001695,2]
[368983713,1751424644984,-151.0,0.0001695,2]
[368983714,1751424644994,-151.0,0.0001695,2]
[368983715,1751424645003,-151.0,0.0001695,2]
[368983716,1751424645012,-4062.1107686,0.00016959,2]
[368983717,1751424645021,-105529.60072633,0.00016959,2]
[368983718,1751424645061,-1024.987324,0.00016959,2]
[368983719,1751424645073,-483.78,0.00016959,2]
[368983720,1751424645139,-500.0,0.00016437,2]
[368983721,1751424645148,-215.5532134,0.00016437,2]
[368983722,1751424645158,-28214.39773081,0.00016959,2]
[368983723,1751424645494,-187.70659235,0.00016437,2]
[368983724,1751424645504,-500.0,0.00016437,2]
[368983725,1751424645513,-500.0,0.00016437,2]
[368983726,1751424645522,-151.0,0.00016697,2]
[368983727,1751424645532,-151.0,0.00016698,2]
[368983728,1751424645541,-151.0,0.00016698,2]
[368983729,1751424645550,-265.17225,0.00016698,2]
[368983730,1751424645559,-2787.14952446,0.00016959,2]
[368983731,1751424645570,-734.71,0.00016959,2]
[368983732,1751424645582,-7107.05310866,0.00016959,2]
[368983733,1751424645597,-44335.70305234,0.00016959,2]
[368983734,1751424645606,-5019.57076,0.0001696,2]
[368983735,1751424645616,-17327.210877,0.0001696,2]
[368983736,1751424645625,-812.0,0.00016962,2]
[368983737,1751424645635,-274.915489,0.00016962,2]
[368983738,1751424645644,-817.434751,0.00016962,2]
[368983739,1751424645653,-817.434751,0.00016962,2]
[368983740,1751424645662,-817.434751,0.00016962,2]
[368983741,1751424645672,-817.434751,0.00016962,2]
[368983742,1751424645681,-151.0,0.00016962,2]
[368983743,1751424645690,-151.0,0.00016962,2]
[368983745,1751424645700,-428.105897,0.00016962,2]
[368983746,1751424645710,-428.105897,0.00016962,2]
[368983747,1751424645719,-428.105897,0.00016962,2]
[368983748,1751424645729,-428.105897,0.00016962,2]
[368983749,1751424645738,-271.052149,0.00016962,2]
[368983750,1751424645747,-258.777187,0.00016962,2]
[368983751,1751424645757,-258.777187,0.00016962,2]
[368983752,1751424645767,-258.777187,0.00016962,2]
[368983753,1751424645776,-258.777187,0.00016962,2]
[368983754,1751424645786,-171.499816,0.00016962,2]
[368983756,1751424645795,-171.499816,0.00016962,2]
[368983757,1751424645804,-171.499816,0.00016962,2]
[368983758,1751424645813,-171.499816,0.00016962,2]
[368983759,1751424645822,-151.0,0.00016962,2]
[368983760,1751424645831,-151.0,0.00016962,2]
[368983761,1751424645841,-191.518398,0.00016962,2]
[368983762,1751424645851,-191.518398,0.00016962,2]
[368983763,1751424645860,-191.518398,0.00016962,2]
[368983764,1751424645871,-191.518398,0.00016962,2]
[368983765,1751424645882,-500.0,0.00016965,2]
[368983766,1751424645891,-150.0,0.00016965,2]
[368983767,1751424645902,-150.0,0.00016965,2]
[368983768,1751424645911,-150.0,0.00016965,2]
[368983769,1751424645921,-150.0,0.00016965,2]
[368983770,1751424645930,-150.0,0.00016965,2]
[368983771,1751424645940,-490.0,0.00016971,2]
[368983772,1751424645949,-490.0,0.00016971,2]
[368983773,1751424645959,-490.0,0.00016971,2]
[368983774,1751424645968,-490.0,0.00016971,2]
[368983775,1751424645978,-490.0,0.00016971,2]
[368983776,1751424645988,-490.0,0.00016971,2]
[368983777,1751424645997,-490.0,0.00016971,2]
[368983778,1751424646007,-495.40886394,0.00016971,2]
[368983779,1751424646017,-490.0,0.00016971,2]
[368983780,1751424646026,-490.0,0.00016971,2]
[368983781,1751424646036,-490.0,0.00016971,2]
[368983782,1751424646045,-490.0,0.00016971,2]
[368983783,1751424646055,-490.0,0.00016971,2]
[368983784,1751424646065,-490.0,0.00016971,2]
[368983785,1751424646075,-173.35,0.00016971,2]
[368983786,1751424646084,-490.0,0.00016971,2]
[368983787,1751424646094,-490.0,0.00016971,2]
[368983788,1751424646103,-490.0,0.00016971,2]
[368983789,1751424646113,-490.0,0.00016971,2]
[368983790,1751424646127,-158.04000186,0.00016971,2]
[368983791,1751424646136,-490.0,0.00016971,2]
[368983792,1751424646145,-490.0,0.00016971,2]
[368983793,1751424646155,-490.0,0.00016971,2]
[368983794,1751424646164,-490.0,0.00016971,2]
[368983795,1751424646176,-490.0,0.00016971,2]
[368983796,1751424646186,-490.0,0.00016971,2]
[368983797,1751424646195,-490.0,0.00016971,2]
[368983798,1751424646205,-490.0,0.00016971,2]
[368983799,1751424646214,-490.0,0.00016971,2]
[368983800,1751424646224,-490.0,0.00016971,2]
[368983801,1751424646234,-490.0,0.00016971,2]
[368983802,1751424646244,-490.0,0.00016971,2]
[368983803,1751424646254,-490.0,0.00016971,2]
[368983804,1751424646264,-490.0,0.00016971,2]
[368983805,1751424646274,-490.0,0.00016971,2]
[368983806,1751424646283,-490.0,0.00016971,2]
[368983807,1751424646292,-490.0,0.00016971,2]
[368983808,1751424646302,-490.0,0.00016971,2]
[368983809,1751424646311,-490.0,0.00016971,2]
[368983810,1751424646322,-490.0,0.00016971,2]
[368983811,1751424646332,-490.0,0.00016971,2]
[368983812,1751424646342,-803.24,0.00016971,2]
[368983813,1751424646352,-490.0,0.00016971,2]
[368983814,1751424646361,-490.0,0.00016971,2]
[368983815,1751424646371,-490.0,0.00016971,2]
[368983816,1751424646380,-490.0,0.00016971,2]
[368983817,1751424646395,-490.0,0.00016971,2]
[368983818,1751424646408,-1320.88,0.00016971,2]
[368983819,1751424646418,-490.0,0.00016971,2]
[368983820,1751424646429,-490.0,0.00016971,2]
[368983821,1751424646439,-490.0,0.00016971,2]
[368983822,1751424646449,-490.0,0.00016971,2]
[368983823,1751424646460,-490.0,0.00016971,2]
[368983824,1751424646470,-490.0,0.00016971,2]
[368983825,1751424646481,-490.0,0.00016971,2]
[368983826,1751424646492,-490.0,0.00016971,2]
[368983827,1751424646502,-490.0,0.00016971,2]
[368983828,1751424646512,-490.0,0.00016971,2]
[368983829,1751424646522,-490.0,0.00016971,2]
[368983830,1751424646532,-838.32,0.00016971,2]
[368983831,1751424646542,-490.0,0.00016971,2]
[368983832,1751424646551,-490.0,0.00016971,2]
[368983833,1751424646561,-490.0,0.00016971,2]
[368983834,1751424646571,-490.0,0.00016971,2]
[368983835,1751424646581,-490.0,0.00016971,2]
[368983836,1751424646590,-490.0,0.00016971,2]
[368983837,1751424646600,-490.0,0.00016971,2]
[368983838,1751424646609,-729.7,0.00016971,2]
[368983839,1751424646619,-490.0,0.00016971,2]
[368983840,1751424646628,-490.0,0.00016971,2]
[368983841,1751424646638,-490.0,0.00016971,2]
[368983842,1751424646647,-490.0,0.00016971,2]
[368983843,1751424646656,-490.0,0.00016971,2]
[368983844,1751424646666,-490.0,0.00016971,2]
[368983845,1751424646675,-490.0,0.00016971,2]
[368983846,1751424646685,-490.0,0.00016971,2]
[368983847,1751424646694,-490.0,0.00016971,2]
[368983848,1751424646703,-615.32062463,0.00016971,2]
[368983849,1751424646713,-490.0,0.00016971,2]
[368983850,1751424646723,-490.0,0.00016971,2]
[368983851,1751424646732,-490.0,0.00016971,2]
[368983852,1751424646743,-490.0,0.00016971,2]
[368983853,1751424646753,-490.0,0.00016971,2]
[368983854,1751424646762,-490.0,0.00016971,2]
[368983855,1751424646771,-490.0,0.00016971,2]
[368983856,1751424646781,-490.0,0.00016971,2]
[368983857,1751424646791,-490.0,0.00016971,2]
[368983858,1751424646800,-490.0,0.00016971,2]
[368983859,1751424646809,-490.0,0.00016971,2]
[368983860,1751424646819,-490.0,0.00016971,2]
[368983861,1751424646829,-490.0,0.00016971,2]
[368983862,1751424646839,-490.0,0.00016971,2]
[368983863,1751424646849,-490.0,0.00016971,2]
[368983865,1751424646858,-1997.85,0.00016971,2]
[368983867,1751424646868,-490.0,0.00016971,2]
[368983869,1751424646878,-490.0,0.00016971,2]
[368983871,1751424646895,-490.0,0.00016971,2]
[368983873,1751424646910,-490.0,0.00016971,2]
[368983874,1751424646920,-490.0,0.00016971,2]
[368983875,1751424646931,-490.0,0.00016971,2]
[368983876,1751424646942,-490.0,0.00016971,2]
[368983877,1751424646953,-490.0,0.00016971,2]
[368983878,1751424646962,-490.0,0.00016971,2]
[368983879,1751424646972,-490.0,0.00016971,2]
[368983880,1751424646982,-490.0,0.00016971,2]
[368983881,1751424646992,-490.0,0.00016971,2]
[368983882,1751424647001,-490.0,0.00016971,2]
[368983883,1751424647011,-490.0,0.00016971,2]
[368983884,1751424647020,-542.17,0.00016971,2]
[368983885,1751424647030,-490.0,0.00016971,2]
[368983886,1751424647039,-598.7,0.00016971,2]
[368983887,1751424647050,-490.0,0.00016971,2]
[368983888,1751424647060,-490.0,0.00016971,2]
[368983889,1751424647071,-490.0,0.00016971,2]
[368983890,1751424647081,-490.0,0.00016972,2]
[368983891,1751424647091,-151.0,0.00016972,2]
[368983892,1751424647102,-427.594922,0.00016972,2]
[368983893,1751424647112,-427.594922,0.00016972,2]
[368983894,1751424647123,-432.94112597,0.00016972,2]
[368983895,1751424647133,-490.0,0.00016972,2]